Cogmind - Beta 16 @@@ ROGUE MODE // 2025.11.23 @ 06:10:24 Player: Mozco Result: Destroyed by Y-54 Guardian with Gatling Laser Performance ------------- Evolutions (3) 1500 Regions Visited (6) 1200 Robots Destroyed (0) 0 Value Destroyed (0) 0 Prototype IDs (7) 140 Alien Tech Used (0) 0 Bonus (834) 834 TOTAL SCORE: 3674 Bonus ------- Pacifist 834 Cogmind --------- Core Integrity 0/700 Matter 218/300 Energy 99/100 System Corruption 9% Temperature Cool (14) Movement Flying (35) Location -7/Factory Parts ------- > --- POWER (1) -------- (None) > --- PROPULSION (2) --- Cooled VTOL Module Faulty Cooled VTOL Module > --- UTILITY (8) ------ (None) > --- WEAPON (2) ------- (None) > --- INVENTORY (5) ---- Hypervelocity Mass Driver Peak State ------------ > --- POWER ------------ (None) > --- PROPULSION ------- (None) > --- UTILITY ---------- Improved Terrain Scan Processor Advanced Terrain Scan Processor Improved Melee Analysis Suite Experimental Propulsion Shielding System Shield > --- WEAPON ----------- (None) > --- INVENTORY -------- Hypervelocity Mass Driver [Rating: 20] Favorites ----------- Power Light Ion Engine Engine Light Ion Engine Propulsion Cooled VTOL Module Flight Unit Cooled VTOL Module Utility Improved Terrain Scan Processor Device System Restoration Module Processor Improved Terrain Scan Processor Hackware System Shield Protection Experimental Propulsion Shielding Weapon Datajack Special Melee Weapon Datajack Build | -11 -10 -9 -8 -7 -7 -7 ------- Run | Yrd Mat Mat Mat Fac Was Fac Slots Evolved 6 | . . 2 2 2 . . Power . | . . . . . . . Propulsion . | . . . . . . . Utility 6 | . . 2 2 2 . . Weapon . | . . . . . . . Parts Attached 14 | 1 1 . 3 5 1 3 Power 1 | 1 . . . . . . Engine 1 | 1 . . . . . . Core . | . . . . . . . Reactor . | . . . . . . . Propulsion 5 | . 1 . . 2 . 2 Treads . | . . . . . . . Leg . | . . . . . . . Wheel . | . . . . . . . Hover . | . . . . . . . Flight 5 | . 1 . . 2 . 2 Utility 7 | . . . 3 2 1 1 Device 1 | . . . . . . 1 Storage . | . . . . . . . Processor 4 | . . . 2 2 . . Hackware 1 | . . . 1 . . . Protection 1 | . . . . . 1 . Artifact . | . . . . . . . Weapon 1 | . . . . 1 . . Energy Gun . | . . . . . . . Energy Cannon . | . . . . . . . Ballistic Gun . | . . . . . . . Ballistic Cannon . | . . . . . . . Launcher . | . . . . . . . Special Weapon . | . . . . . . . Impact Weapon . | . . . . . . . Slashing Weapon . | . . . . . . . Piercing Weapon . | . . . . . . . Special Melee Weapon 1 | . . . . 1 . . Unidentified Prototypes 2 | . . . . . 1 1 Parts Lost 9 | . 1 . 1 4 2 1 Power 1 | . 1 . . . . . Propulsion 3 | . . . 1 2 . . Utility 4 | . . . . 1 2 1 Weapon 1 | . . . . 1 . . Highest Loss Streak 3 | . 1 . 1 3 2 1 To Critical Strikes . | . . . . . . . Average Backups . | . . . . . . 1 Power . | . . . . . . . Propulsion . | . . . . . . . Utility . | . . . . . . . Weapon . | . . . . . . 1 Tool/Special . | . . . . . . . Unused Backups 1 | . . . . . . 1 Power . | . . . . . . . Propulsion . | . . . . . . . Utility . | . . . . . . . Weapon 1 | . . . . . . 1 Tool/Special . | . . . . . . . Average Slot Usage (%) 19 | . 16 7 18 35 20 11 Engine 1 | . 12 . . . . . Flight 5 | . 4 7 7 1 . 10 Processor 8 | . . . 6 22 13 . Hackware 2 | . . . 3 7 3 . Peak Build Rating 20 | 1 2 1 9 18 20 14 Average Rating 7 | . 1 . 4 14 11 7 On Entrance 3 | . 1 . 1 9 14 . Avg Prop Armor Cover (%) 8 | . . . . . . 8 Naked Turns 91 | . 3 8 . . 24 56 Heaviest Build 3 | 3 3 . . 1 1 1 Greatest Support 5 | 3 4 4 5 5 3 5 Greatest Overweight (x) . | . . . . . . . Average Overweight (x) . | . . . . . . . Largest Inventory Capacity 5 | 5 5 5 5 5 5 5 Average Capacity 5 | 5 5 5 5 5 5 5 Most Carried 1 | . 1 1 1 1 1 1 Average Carried . | . . . . . . 1 Final Capacity 5 | 5 5 5 5 5 5 5 Final Carried 1 | . 1 . . . 1 1 Class Distribution -------------------- 100% | Mutant Dominant Class ---------------- Mutant | -10/Materials Mutant | -9/Materials Mutant | -8/Materials Mutant | -7/Factory Mutant | -7/Waste Mutant | -7/Factory Resources | -11 -10 -9 -8 -7 -7 -7 ----------- Run | Yrd Mat Mat Mat Fac Was Fac Matter Collected 251 | 210 . . 13 28 . . Remotely . | . . . . . . . Salvage Created . | . . . . . . . Parts . | . . . . . . . Haulers Intercepted . | . . . . . . . Recyclers Shooed . | . . . . . . . Parts Field Recycled . | . . . . . . . Retrieved Matter . | . . . . . . . Parts Self-Destructed . | . . . . . . . Prevented . | . . . . . . . Parts Restored . | . . . . . . . Kills | -11 -10 -9 -8 -7 -7 -7 ------- Run | Yrd Mat Mat Mat Fac Was Fac Combat Hostiles Destroyed . | . . . . . . . Classes Destroyed . | . . . . . . . Best Kill Streak . | . . . . . . . Combat Bots Only . | . . . . . . . Max Kills in Single Turn . | . . . . . . . Gunslinging . | . . . . . . . Exploded . | . . . . . . . Melee . | . . . . . . . Uniques/NPCs Destroyed . | . . . . . . . Combat | -11 -10 -9 -8 -7 -7 -7 -------- Run | Yrd Mat Mat Mat Fac Was Fac Hostile Shots Fired 154 | . 9 3 9 62 3 68 Missed 82 | . 2 3 4 30 . 43 Hits 72 | . 7 . 5 32 3 25 Melee 3 | . . . . . 3 . Projectile 69 | . 7 . 5 32 . 25 Critical Strikes 2 | . . . 1 . 1 . Damage Taken 1010 | . 96 . 80 403 154 277 Core 810 | . 56 . 46 310 154 244 Absorbed by Shields . | . . . . . . . Core Remaining (%) 92 | 100 77 100 91 . . . Volleys Fired . | . . . . . . . Largest . | . . . . . . . Hottest . | . . . . . . . Shots Fired . | . . . . . . . Gun . | . . . . . . . Cannon . | . . . . . . . Launcher . | . . . . . . . Special . | . . . . . . . Kinetic . | . . . . . . . Thermal . | . . . . . . . Explosive . | . . . . . . . Electromagnetic . | . . . . . . . Robot Hit Streak . | . . . . . . . Robot Miss Streak . | . . . . . . . Penetration Max . | . . . . . . . Secondary Targets . | . . . . . . . Shots Hit Robots 2 | . . . . 2 . . Core Hits . | . . . . . . . Critical Kills . | . . . . . . . Critical Parts Destroyed . | . . . . . . . Critical Strikes . | . . . . . . . Melee Attacks 2 | . . . . 2 . . Impact . | . . . . . . . Slashing . | . . . . . . . Piercing . | . . . . . . . Sneak Attacks 2 | . . . . 2 . . Combat Hostiles . | . . . . . . . Follow-up Attacks . | . . . . . . . Damage Inflicted 11 | . 6 . . . . 5 Guns . | . . . . . . . Cannons . | . . . . . . . Explosions . | . . . . . . . Melee . | . . . . . . . Ramming 11 | . 6 . . . . 5 Kinetic . | . . . . . . . Thermal . | . . . . . . . Explosive . | . . . . . . . Electromagnetic . | . . . . . . . Impact . | . . . . . . . Slashing . | . . . . . . . Piercing . | . . . . . . . Highest Corruption 10 | . . . . . 6 10 Average Corruption 8 | . . . . . 6 8 Corruption Purged 1 | . . . . . . 1 Corruption Blocked . | . . . . . . . Effects 8 | . . . . . 3 5 Message Errors 1 | . . . . . . 1 Matter Fused 2 | . . . . . . 2 Energy Discharges 1 | . . . . . . 1 Parts Fused 1 | . . . . . 1 . Data Loss (minor) 2 | . . . . . 1 1 Data Loss (major) 1 | . . . . . 1 . Overload Shots . | . . . . . . . Overflow Damage . | . . . . . . . Projectiles . | . . . . . . . Explosions . | . . . . . . . Melee . | . . . . . . . Knockbacks . | . . . . . . . Impact . | . . . . . . . Kinetic . | . . . . . . . Secondary . | . . . . . . . Self-Inflicted Damage 5 | . 3 . . . . 2 Shots . | . . . . . . . Rammed 2 | . 1 . . . . 1 Targets Rammed 2 | . 1 . . . . 1 Kicked . | . . . . . . . Crushed . | . . . . . . . Highest Temperature 5 | . . . 5 . . . Average Temperature 5 | . . . 5 . . . Received Heat Transfer 231 | . 48 . 63 39 . 81 Siege Activations . | . . . . . . . Martial Activations . | . . . . . . . Shielding Activations . | . . . . . . . Robots Disrupted . | . . . . . . . Combat Hostiles . | . . . . . . . Robots Corrupted . | . . . . . . . Combat Hostiles . | . . . . . . . Parts Fried . | . . . . . . . Impact Corruptions . | . . . . . . . Robots Melted . | . . . . . . . Combat Hostiles . | . . . . . . . Parts Melted . | . . . . . . . Heat Transferred . | . . . . . . . Parts Sabotaged . | . . . . . . . Parts Stolen . | . . . . . . . Parts Stripped . | . . . . . . . Power Chain Reactions . | . . . . . . . Alert | -11 -10 -9 -8 -7 -7 -7 ------- Run | Yrd Mat Mat Mat Fac Was Fac Maximum Alert Level 1 | . . . . . . 1 Low Security (%) 92 | 100 100 100 100 100 100 75 Level 1 7 | . . . . . . 24 Level 2 . | . . . . . . . Level 3 . | . . . . . . . Level 4 . | . . . . . . . Level 5 . | . . . . . . . High Security . | . . . . . . . Max Security . | . . . . . . . Peak Influence 226 | . 26 15 83 90 28 226 Initial 28 | . . 1 1 25 28 . Average 43 | . 15 4 45 41 12 82 Influence Increases 595 | . 36 24 97 162 . 276 Successful Hack 170 | . 21 9 82 12 . 46 Anti-Garrison Action 200 | . . . . . . 200 Partial Spotted 45 | . 15 15 15 . . . Lose Combat Pursuer 180 | . . . . 150 . 30 Influence Decreases 419 | . 30 25 44 140 80 100 Entered New Map 94 | . . 5 4 33 52 . Time Decay 235 | . 20 20 30 67 18 80 Lost Part 80 | . 10 . 10 40 10 10 Lost Ally 10 | . . . . . . 10 Squads Dispatched 5 | . 1 1 1 1 . 1 Investigation 2 | . 1 . . . . 1 Extermination . | . . . . . . . Reinforcement 3 | . . 1 1 1 . . Assault . | . . . . . . . Garrison . | . . . . . . . Intercept . | . . . . . . . Searches Triggered . | . . . . . . . Construction Impeded . | . . . . . . . Haulers Reinforced . | . . . . . . . Active Scanning Responses . | . . . . . . . Cargo Convoy Interrupts . | . . . . . . . Stealth | -11 -10 -9 -8 -7 -7 -7 --------- Run | Yrd Mat Mat Mat Fac Was Fac Distress Signals 1 | . 1 . . . . . Communications Jammed . | . . . . . . . Distress Signals . | . . . . . . . Times Spotted 55 | . 6 6 7 19 6 11 Peak Tracking Total 9 | . 6 7 6 9 6 7 Tactical Retreats 4 | . . . . 3 . 1 Traps | -11 -10 -9 -8 -7 -7 -7 ------- Run | Yrd Mat Mat Mat Fac Was Fac Traps Triggered 1 | . . . . 1 . . Indirectly . | . . . . . . . Trap Hack Attempts . | . . . . . . . Triggered . | . . . . . . . Disarmed . | . . . . . . . Reprogrammed . | . . . . . . . Reused . | . . . . . . . Traps Extracted . | . . . . . . . Installed . | . . . . . . . Triggered . | . . . . . . . Machines | -11 -10 -9 -8 -7 -7 -7 ---------- Run | Yrd Mat Mat Mat Fac Was Fac Machines Disabled . | . . . . . . . Max in Single Turn . | . . . . . . . Garrison Access 2 | . . . . 1 . 1 Machines Repaired . | . . . . . . . Machines Dismantled . | . . . . . . . Machines Sabotaged . | . . . . . . . Overloaded Fab Kills . | . . . . . . . Hacking | -11 -10 -9 -8 -7 -7 -7 --------- Run | Yrd Mat Mat Mat Fac Was Fac Machines Accessed 16 | . 4 2 6 2 . 2 Terminals 12 | . 4 2 5 . . 1 Fabricators . | . . . . . . . Repair Stations . | . . . . . . . Recycling Units . | . . . . . . . Scanalyzers 2 | . . . 1 1 . . Garrison Access 2 | . . . . 1 . 1 Total Hacks 49 | . 17 5 19 4 . 4 Successful 31 | . 9 2 13 3 . 4 Failed 18 | . 8 3 6 1 . . Catastrophic 3 | . . 1 2 . . . Database Lockouts . | . . . . . . . Manual 27 | . 10 5 8 . . 4 Terminals 39 | . 17 5 14 . . 3 Fabricators . | . . . . . . . Repair Stations . | . . . . . . . Recycling Units . | . . . . . . . Scanalyzers 8 | . . . 5 3 . . Garrison Access 2 | . . . . 1 . 1 Terminal Hacks 12 | . 7 . 5 . . . Part Schematic 4 | . 3 . 1 . . . Robot Analysis 1 | . 1 . . . . . Prototype ID Bank 2 | . . . 2 . . . Alert Level 1 | . 1 . . . . . Security Status 1 | . . . 1 . . . Surveillance Status 1 | . . . 1 . . . Registered Components 1 | . 1 . . . . . Zone Layout 1 | . 1 . . . . . Fabricator Hacks . | . . . . . . . Repair Station Hacks . | . . . . . . . Recycling Unit Hacks . | . . . . . . . Scanalyzer 6 | . . . 4 2 . . Insert Component 2 | . . . 1 1 . . Analyze 3 | . . . 2 1 . . Retrieve Study 1 | . . . 1 . . . Garrison Access Hacks 1 | . . . . 1 . . Seal Access 1 | . . . . 1 . . Unauthorized Hacks 12 | . 2 2 4 . . 4 Terminals 11 | . 2 2 4 . . 3 Assimilate 1 | . . . . . . 1 Botnet 9 | . 2 2 4 . . 1 Operators 1 | . . . . . . 1 Fabricators . | . . . . . . . Repair Stations . | . . . . . . . Recycling Units . | . . . . . . . Scanalyzers . | . . . . . . . Garrison Access 1 | . . . . . . 1 Jam 1 | . . . . . . 1 Data Cores Recovered . | . . . . . . . Used . | . . . . . . . Hacking Detections 12 | . 4 2 5 1 . . Full Trace Events 1 | . 1 . . . . . Feedback Events . | . . . . . . . Feedback Blocked . | . . . . . . . Robot Schematics Acquired . | . . . . . . . Robots Built . | . . . . . . . Authchips . | . . . . . . . Time . | . . . . . . . Total Robot Build Rating . | . . . . . . . Part Schematics Acquired 6 | . 3 . 2 1 . . Parts Built . | . . . . . . . Authchips . | . . . . . . . Time . | . . . . . . . Total Part Build Rating . | . . . . . . . Part Studies Acquired 1 | . . . 1 . . . Parts Repaired . | . . . . . . . Time . | . . . . . . . Parts Recycled . | . . . . . . . Recycled Matter . | . . . . . . . Retrieved Matter . | . . . . . . . Retrieved Components . | . . . . . . . Parts Scanalyzed 2 | . . . 1 1 . . Part Schematics Acquired 2 | . . . 1 1 . . Parts Damaged . | . . . . . . . Bothacking | -11 -10 -9 -8 -7 -7 -7 ------------ Run | Yrd Mat Mat Mat Fac Was Fac Used RIF Installer . | . . . . . . . Robots Hacked 1 | . . . . 1 . . Non-combat 1 | . . . . 1 . . Combat . | . . . . . . . Robot Hacks Applied 1 | . . . . 1 . . find_chute 1 | . . . . 1 . . Relay Couplers Released 1 | . . . . 1 . . Machine Destruction 1 | . . . . 1 . . Fabnet Peak Effective % . | . . . . . . . Robots Rewired . | . . . . . . . Allies Hacked . | . . . . . . . Hacks Repelled . | . . . . . . . Allies | -11 -10 -9 -8 -7 -7 -7 -------- Run | Yrd Mat Mat Mat Fac Was Fac Total Allies 1 | . . . . . . 1 Largest Group 1 | . . . . . . 1 Highest-Rated Group 26 | . . . . . . 26 Highest-Rated Ally 26 | . . . . . . 26 Total Orders . | . . . . . . . Ally Attacks . | . . . . . . . Total Damage . | . . . . . . . Kills . | . . . . . . . Allies Corrupted . | . . . . . . . Allies Melted . | . . . . . . . Intel | -11 -10 -9 -8 -7 -7 -7 ------- Run | Yrd Mat Mat Mat Fac Was Fac Active Infowar (turns) 40 | . . . 5 35 . . Machine Analysis 40 | . . . 5 35 . . Robot Analysis Total 1 | . 1 . . . . . Derelict Logs Recovered . | . . . . . . . Drone Launches . | . . . . . . . Drone Recoveries . | . . . . . . . Exploration | -11 -10 -9 -8 -7 -7 -7 ------------- Run | Yrd Mat Mat Mat Fac Was Fac Turns Passed 603 | 12 59 63 69 154 72 174 Spaces Moved 1195 | 22 120 150 152 305 138 308 Core 594 | 22 62 14 8 239 138 111 Treads . | . . . . . . . Legs . | . . . . . . . Wheels . | . . . . . . . Hover . | . . . . . . . Flight 601 | . 58 136 144 66 . 197 Fastest Speed 35 | 50 40 40 40 35 50 35 Average Speed 43 | 50 45 40 40 46 50 40 Slowest Speed 50 | 50 50 50 50 50 50 50 Overloaded Moves . | . . . . . . . Propulsion Burnouts . | . . . . . . . Robots Hopped 19 | . 4 . 7 2 . 6 Potential Cave-ins . | . . . . . . . Cave-ins Triggered . | . . . . . . . Exploration Rate (%) 25 | 4 30 21 26 11 79 9 Regions Visited 6 Branch Regions . Pre-discovered Areas . | . . . . . . . Known Exits Taken . | . . . . . . . Unknown Exits Taken 4 | 1 1 1 1 . . . Scrap Searched . | . . . . . . . Spaces Dug . | . . . . . . . Terrain Destroyed . | . . . . . . . Melee . | . . . . . . . Projectile . | . . . . . . . AOE . | . . . . . . . Terrain Rammed . | . . . . . . . Walls Destroyed . | . . . . . . . Machines Disabled . | . . . . . . . Actions | -11 -10 -9 -8 -7 -7 -7 --------- Run | Yrd Mat Mat Mat Fac Was Fac Total 1242 | 22 120 150 150 311 139 350 Wait 47 | . 2 . 1 . . 44 Move 1158 | 21 114 149 139 301 137 297 Hop 14 | . 2 . 5 2 . 5 Pick Up 2 | . . . . 1 1 . Fast Attach 13 | 1 1 . 3 4 1 3 Attach 3 | . . 1 1 1 . . Detach 2 | . 1 . 1 . . . Swap . | . . . . . . . Drop . | . . . . . . . Fire . | . . . . . . . Melee 2 | . . . . 2 . . Ram 1 | . . . . . . 1 Kick . | . . . . . . . Crush . | . . . . . . . Escape Stasis . | . . . . . . . Rewire . | . . . . . . . Trap . | . . . . . . . Miscellaneous . | . . . . . . . Route ------- -11/Scrapyard -10/Materials -9/Materials -8/Materials -7/Factory -7/Waste -7/Factory History --------- Turn | Location | Event 7 | -11/Scrapyard | Discovered new exit (range 15) 13 | -11/Scrapyard | Entered Materials 68 | -10/Materials | Discovered new exit (range 3) 72 | -10/Materials | Entered another Materials area 72 | -9/Materials | Evolved 2 slots: Utility x2 131 | -9/Materials | Discovered new exit (range 3) 135 | -9/Materials | Entered another Materials area 135 | -8/Materials | Evolved 2 slots: Utility x2 195 | -8/Materials | Discovered new exit (range 13) 204 | -8/Materials | Entered Factory 204 | -7/Factory | Evolved 2 slots: Utility x2 328 | -7/Factory | Build established: Mutant 358 | -7/Factory | Sucked down chute 358 | -7/Factory | Entered Waste 364 | -7/Waste | Spotted C-40 Crusher 373 | -7/Waste | EMP discharged 379 | -7/Waste | Spotted C-40 Crusher 380 | -7/Waste | Lost 3 parts (2n1w) 381 | -7/Waste | Spotted C-40 Crusher 397 | -7/Waste | Crushed by Compactor (1 part destroyed, 2 dropped) 398 | -7/Waste | Core integrity fell below 50% 401 | -7/Waste | Spotted C-40 Crusher 401 | -7/Waste | Spotted C-40 Crusher 402 | -7/Waste | Spotted C-40 Crusher 406 | -7/Waste | Crushed by Compactor (1 part destroyed, 1 dropped) 419 | -7/Waste | Discovered new exit (range 11) 430 | -7/Waste | Entered Factory 486 | -7/Factory | Core integrity fell below 20% 487 | -7/Factory | System corruption reached 10% 604 | -7/Factory | Destroyed by Y-54 Guardian with Gatling Laser Last Messages --------------- 00491_ System corrupted: Component data lost. 00500_ K-01 Serf cleans the Neutrino Reactor. 00517_ HO UX:,E H0AHA&23I#IHWY| VTQLZMSLGW99PP 00517_ K-01 Serf cleans the Neutrino Reactor. 00547_ Connecting with Garrison Access... >>Force(Jam) ACCESS_DOOR_JAMMED 00547_ ALERT: Suspicious activity at Garrison Access F003. Dispatching Investigation squad. 00549_ K-01 Serf collects debris. 00561_ System corrupted: Matter fused (-8). 00577_ Acquired System Restoration Module. 00596_ System corrupted: Energy discharge (-20). 00599_ System Restoration Module purges 1% system corruption (9%). 00600_ O-24 Administrator: "IFF HANDSHAKE FAILED. SECURING TERMINAL." 00602_ C-30 ARC bursts open, deploying its payload. 00602_ H-55 Commando unfolds itself. 00602_ Penetrated by Slug. 00602_ T-07 Excavator destroyed. 00602_ System Restoration Module destroyed. Map ----- +----------------------------------------------------+ | ?????????????????????????????????????????????????? | | ?????????????????????????????????????????????????? | | ?????????????????????????????????????????????????? | | ?????????????????????????????????????????????????? | | ?????????????????????????????????????????????????? | | ?????????????????????????????????????????????????? | | ?????????????????????????????????????????????????? | | ?????????????????????????????????????????????????? | | ?????????????????????????????????????????????????? | | ?????????????????????????????????????????????????? | | ?????????????????????????????????????????????????? | | ?????????????????????????????????????????????????? | | ????????????????????? ?????????????????????????? | | ??????????????????? ?????????????????????????? | | ?????????????????? ?????????????????????????? | | ?????????????????? ????????????????????????? | | ??????????????????# #?????##?????????????????? | | ??????????????????# ######Y###???????????????? | | ??????????????????# # #???????????????? | | ??????????????????+ # #???????????????? | | ??????????????????# #! #???????????????? | | ??????????????????# # #???????????????? | | ??????????????????# # !!! #???????????????? | | ??????????????????# # !! #???????????????? | | ??????????????????# # !! #???????????????? | | ??????????????????# #@ #???????????????? | | ??????????????????# t #???????????????? | | ??????????????????# ##########???????????????? | | ??????????????????# #??? ??????????????????? | | ################### #?? ??????????????????? | | # !!! # #? ???????????????????? | | # """"""""" !!! # # """???????????????????? | | # !!! #Y #o """???????????????????? | | # """"""""" /h + """???????????????????? | | # # # "" ??????????????????? | | # """"""""" # = # ??????????????????????? | | # # %* #? ?????????????????????? | | ################### = #??" ????????????????????? | | ????????????##????# #??F ????????????????????? | | ?????######## ##### #???""???????????????????? | | ?????? !!! # #???##########???????????? | | ??????"" !!! # #?? #???????????? | | ??????"Y !! # #?? #???????????? | | ?????#"" # #? #???????????? | | ?????# # #? #???????????? | | ?????# # # #???????????? | | ?????????"""" # # #???????????? | | ?????????"""" + + #???????????? | | ????????""" # # #???????????? | | ?????# # # #???????????? | +----------------------------------------------------+ Best States ------------- Heat Dissipation 34 Energy Generation 10 Energy Capacity 125 Matter Stores 300 Matter Capacity 300 Sight Range 16 Terrain Scan Density 310 Propulsion Shielding 90 Evasion (%) 63 Melee Accuracy 6 Defensive Hacking 10 Item Schematics ----------------- Targeting Computer | -10/Materials | Hacked Lgt. Ion Engine | -10/Materials | Hacked Med. Battery | -10/Materials | Hacked Hacking Suite | -8/Materials | Hacked Flight Unit | -8/Materials | Scanalyzed Adv. Terrain Scan Processor | -7/Factory | Scanalyzed Robot Schematics ------------------ None Fabricated ------------ Nothing Repaired ---------- Nothing Studied --------- Flight Unit | -8/Materials | Hacked Alien Tech Used ----------------- None Achievements -------------- None Challenges ------------ None Game ------ Seed CryofiberFieldStick Manual? 0 Play Time 00:13:33 Cumulative 320.0 hours Start 2025.11.23 @ 05:59:02 End 2025.11.23 @ 06:10:24 Sessions 1 Manual Loads 0 Difficulty Rogue Special Mode None Game No. 333 Rogue 329 Adventurer 3 Explorer 1 Win Type - Total 2 Types 2/0/0/0/0/0/0/0/0/0 Lore% 82 Gallery% 78 Achievement% 63 Wizard Run 0 Options --------- Layout 0 ASCII 0 Keyboard 0 Movement Numpad Keybinds 0 Fullscreen 2 Font 18/SmallcapsGlow Map View 76x50 Zoom Use 0% Tactical HUD 1 Map Filters NONE Filters NONE Steam 1 RUN: 6bf48f41-3f13-4562-a1ab-e1dde6aca766